fUST/lending_fUST_20250604
["ID","MTS","AMOUNT","RATE_DAILY","PERIOD"]
[364224034,1749045040171,-430.0,0.00016438,2]
[364224035,1749045040287,-440.0,0.00016438,2]
[364224036,1749045040299,-430.0,0.00016438,2]
[364224037,1749045040308,-440.0,0.00016438,2]
[364224038,1749045040318,-151.0,0.00016438,2]
[364224039,1749045040327,-201.69857962,0.00016438,2]
[364224040,1749045040336,-7690.29,0.00016438,2]
[364224041,1749045040346,-447.3754686,0.00016438,2]
[364224042,1749045040355,-400.0,0.00016438,2]
[364224043,1749045040365,-1091.39,0.00016438,2]
[364224044,1749045040374,-440.0,0.00016438,2]
[364224045,1749045040384,-400.0,0.00016438,2]
[364224046,1749045040394,-440.0,0.00016438,2]
[364224047,1749045040403,-488.43621285,0.00016438,2]
[364224048,1749045040413,-440.0,0.00016438,2]
[364224049,1749045040422,-471.88836454,0.00016438,2]
[364224050,1749045040432,-430.0,0.00016438,2]
[364224051,1749045040442,-440.0,0.00016438,2]
[364224052,1749045040451,-431.38406047,0.00016438,2]
[364224053,1749045040461,-440.0,0.00016438,2]
[364224054,1749045040471,-430.0,0.00016438,2]
[364224055,1749045040481,-440.0,0.00016438,2]
[364224056,1749045040491,-440.0,0.00016438,2]
[364224057,1749045040501,-420.0,0.00016438,2]
[364224058,1749045040511,-440.0,0.00016438,2]
[364224059,1749045040521,-440.0,0.00016438,2]
[364224060,1749045040531,-440.0,0.00016438,2]
[364224061,1749045040543,-430.0,0.00016438,2]
[364224062,1749045040553,-440.0,0.00016438,2]
[364224063,1749045040563,-440.0,0.00016438,2]
[364224064,1749045040573,-440.0,0.00016438,2]
[364224065,1749045040583,-440.0,0.00016438,2]
[364224067,1749045040593,-430.0,0.00016438,2]
[364224069,1749045040602,-440.0,0.00016438,2]
[364224070,1749045040612,-430.0,0.00016438,2]
[364224072,1749045040621,-440.0,0.00016438,2]
[364224073,1749045040632,-440.0,0.00016438,2]
[364224074,1749045040642,-440.0,0.00016438,2]
[364224075,1749045040652,-440.0,0.00016438,2]
[364224076,1749045040662,-430.0,0.00016438,2]
[364224077,1749045040671,-440.0,0.00016438,2]
[364224078,1749045040681,-440.0,0.00016438,2]
[364224079,1749045040691,-430.0,0.00016438,2]
[364224080,1749045040701,-430.0,0.00016438,2]
[364224081,1749045040710,-430.0,0.00016438,2]
[364224082,1749045040720,-292.86881545,0.00016438,2]
[364224083,1749045040730,-430.0,0.00016438,2]
[364224084,1749045040739,-440.0,0.00016438,2]
[364224085,1749045040749,-1759.2,0.00016438,2]
[364224086,1749045040759,-430.0,0.00016438,2]
[364224087,1749045040769,-2750.33,0.00016438,2]
[364224088,1749045040778,-430.0,0.00016438,2]
[364224089,1749045040788,-440.0,0.00016438,2]
[364224090,1749045040800,-587.28,0.00016438,2]
[364224091,1749045040810,-500.0,0.00016438,2]
[364224093,1749045040819,-430.0,0.00016438,2]
[364224095,1749045040830,-2580.62,0.00016438,2]
[364224097,1749045040840,-430.0,0.00016438,2]
[364224099,1749045040849,-440.0,0.00016438,2]
[364224100,1749045040858,-440.0,0.00016438,2]
[364224101,1749045040868,-440.0,0.00016438,2]
[364224102,1749045040878,-430.0,0.00016438,2]
[364224103,1749045040888,-440.0,0.00016438,2]
[364224104,1749045040899,-440.0,0.00016438,2]
[364224105,1749045040910,-420.0,0.00016438,2]
[364224106,1749045040919,-340.0,0.00016438,2]
[364224107,1749045040930,-430.0,0.00016438,2]
[364224109,1749045040939,-440.0,0.00016438,2]
[364224110,1749045040949,-2145.54,0.00016438,2]
[364224111,1749045040959,-618.02,0.00016438,2]
[364224112,1749045040968,-430.0,0.00016438,2]
[364224113,1749045040978,-430.0,0.00016438,2]
[364224114,1749045040987,-440.0,0.00016438,2]
[364224115,1749045040997,-430.0,0.00016438,2]
[364224116,1749045041006,-179.11155793,0.00016438,2]
[364224117,1749045041015,-463.98719117,0.00016438,2]
[364224118,1749045041025,-197.49781145,0.00016438,2]
[364224119,1749045041034,-440.0,0.00016438,2]
[364224120,1749045041046,-751.98,0.00016438,2]
[364224121,1749045041055,-440.0,0.00016438,2]
[364224122,1749045041064,-430.0,0.00016438,2]
[364224123,1749045041074,-440.0,0.00016438,2]
[364224124,1749045041083,-440.0,0.00016438,2]
[364224125,1749045041093,-440.0,0.00016438,2]
[364224126,1749045041103,-440.0,0.00016438,2]
[364224127,1749045041112,-440.0,0.00016438,2]
[364224128,1749045041121,-440.0,0.00016438,2]
[364224129,1749045041131,-340.0,0.00016438,2]
[364224130,1749045041140,-440.0,0.00016438,2]
[364224131,1749045041149,-4086.22,0.00016438,2]
[364224133,1749045041159,-400.0,0.00016438,2]
[364224135,1749045041168,-440.0,0.00016438,2]
[364224137,1749045041177,-440.0,0.00016438,2]
[364224139,1749045041186,-440.0,0.00016438,2]
[364224141,1749045041196,-430.0,0.00016438,2]
[364224143,1749045041206,-430.0,0.00016438,2]
[364224145,1749045041215,-151.0,0.00016438,2]
[364224147,1749045041224,-440.0,0.00016438,2]
[364224149,1749045041234,-430.0,0.00016438,2]
[364224151,1749045041243,-440.0,0.00016438,2]
[364224153,1749045041253,-430.0,0.00016438,2]
[364224155,1749045041263,-440.0,0.00016438,2]
[364224157,1749045041272,-440.0,0.00016438,2]
[364224159,1749045041282,-440.0,0.00016438,2]
[364224161,1749045041292,-440.0,0.00016438,2]
[364224163,1749045041302,-685.89,0.00016438,2]
[364224165,1749045041311,-654.89,0.00016438,2]
[364224167,1749045041320,-440.0,0.00016438,2]
[364224169,1749045041330,-430.0,0.00016438,2]
[364224171,1749045041339,-541.02,0.00016438,2]
[364224173,1749045041348,-430.0,0.00016438,2]
[364224175,1749045041357,-443.2514171,0.00016438,2]
[364224177,1749045041366,-440.0,0.00016438,2]
[364224179,1749045041376,-517.41446567,0.00016438,2]
[364224181,1749045041385,-440.0,0.00016438,2]
[364224183,1749045041395,-440.0,0.00016438,2]
[364224185,1749045041404,-440.0,0.00016438,2]
[364224187,1749045041413,-440.0,0.00016438,2]
[364224189,1749045041424,-440.0,0.00016438,2]
[364224191,1749045041434,-580.0,0.00016438,2]
[364224193,1749045041443,-1063.64,0.00016438,2]
[364224195,1749045041452,-412.65062192,0.00016438,2]
[364224197,1749045041462,-410.0,0.00016438,2]
[364224199,1749045041471,-430.0,0.00016438,2]
[364224201,1749045041481,-766.02,0.00016438,2]
[364224203,1749045041493,-440.0,0.00016438,2]
[364224205,1749045041503,-430.0,0.00016438,2]
[364224207,1749045041512,-430.0,0.00016438,2]
[364224209,1749045041522,-472.93184677,0.00016438,2]
[364224211,1749045041532,-1318.18,0.00016438,2]
[364224213,1749045041543,-430.0,0.00016438,2]
[364224215,1749045041552,-430.0,0.00016438,2]
[364224217,1749045041562,-440.0,0.00016438,2]
[364224219,1749045041571,-150.77394187,0.00016438,2]
[364224221,1749045041581,-440.0,0.00016438,2]
[364224223,1749045041590,-430.0,0.00016438,2]
[364224225,1749045041600,-430.0,0.00016438,2]
[364224227,1749045041609,-440.0,0.00016438,2]
[364224229,1749045041620,-430.0,0.00016438,2]
[364224231,1749045041629,-430.0,0.00016438,2]
[364224233,1749045041639,-440.0,0.00016438,2]
[364224235,1749045041649,-370.0,0.00016438,2]
[364224237,1749045041659,-2193.29,0.00016438,2]
[364224239,1749045041669,-273.27911492,0.00016438,2]
[364224241,1749045041678,-430.0,0.00016438,2]
[364224243,1749045041688,-440.0,0.00016438,2]
[364224245,1749045041697,-270.0,0.00016438,2]
[364224247,1749045041708,-440.0,0.00016438,2]
[364224249,1749045041718,-310.0,0.00016438,2]
[364224252,1749045041728,-440.0,0.00016438,2]
[364224254,1749045041738,-440.0,0.00016438,2]
[364224256,1749045041747,-440.0,0.00016438,2]
[364224258,1749045041757,-440.0,0.00016438,2]
[364224260,1749045041766,-430.0,0.00016438,2]
[364224262,1749045041775,-440.0,0.00016438,2]
[364224264,1749045041786,-430.0,0.00016438,2]
[364224266,1749045041796,-440.0,0.00016438,2]
[364224268,1749045041806,-440.0,0.00016438,2]
[364224270,1749045041816,-430.0,0.00016438,2]
[364224272,1749045041825,-1035.31700937,0.00016438,2]
[364224289,1749045042001,-609.59299063,0.00016438,2]
[364224291,1749045042011,-440.0,0.00016438,2]
[364224293,1749045042020,-2519.12,0.00016438,2]
[364224295,1749045042030,-430.0,0.00016438,2]
[364224297,1749045042040,-440.0,0.00016438,2]
[364224299,1749045042049,-440.0,0.00016438,2]
[364224301,1749045042058,-415.5890807,0.00016438,2]
[364224303,1749045042068,-430.0,0.00016438,2]
[364224305,1749045042077,-440.0,0.00016438,2]
[364224307,1749045042087,-573.13925907,0.00016438,2]
[364224309,1749045042097,-430.0,0.00016438,2]
[364224311,1749045042106,-420.0,0.00016438,2]
[364224313,1749045042115,-430.0,0.00016438,2]
[364224315,1749045042125,-440.0,0.00016438,2]
[364224317,1749045042136,-1292.61,0.00016438,2]
[364224319,1749045042145,-430.0,0.00016438,2]
[364224321,1749045042154,-500.0,0.00016438,2]
[364224323,1749045042164,-155.12556543,0.00016465,2]
[364224325,1749045042174,-500.0,0.00016465,2]
[364224326,1749045042185,-151.3680784,0.00016465,2]
[364224329,1749045042196,-151.0,0.00016465,2]
[364224330,1749045042207,-151.0,0.00016465,2]
[364224333,1749045042218,-500.0,0.00016473,2]
[364224334,1749045042228,-504.89740787,0.00016473,2]
[364224336,1749045042237,-500.0,0.00016493,2]
[364224338,1749045042247,-248.08417531,0.00016493,2]
[364224340,1749045042256,-151.0,0.00016493,2]
[364224342,1749045042266,-600.0,0.000165,2]
[364224344,1749045042275,-500.0,0.0001652,2]
[364224346,1749045042285,-151.0,0.0001652,2]
[364224348,1749045042295,-500.0,0.00016548,2]
[364224350,1749045042305,-151.0,0.00016548,2]
[364224352,1749045042315,-503.15818704,0.00016575,2]
[364224354,1749045042325,-167.47185108,0.00016575,2]
[364224355,1749045042335,-179.96874303,0.00016712,2]
[364224357,1749045042344,-373.12071737,0.00016712,2]
[364224359,1749045042354,-400.0,0.00016712,2]
[364224361,1749045042364,-440.0,0.00016712,2]
[364224363,1749045042374,-440.0,0.00016712,2]
[364224365,1749045042384,-440.0,0.00016712,2]
[364224367,1749045042394,-440.0,0.00016712,2]
[364224369,1749045042402,-440.0,0.00016712,2]
[364224371,1749045042412,-440.0,0.00016712,2]
[364224373,1749045042422,-420.0,0.00016712,2]
[364224375,1749045042432,-440.0,0.00016712,2]
[364224377,1749045042443,-440.0,0.00016712,2]
[364224389,1749045042566,-430.0,0.00016712,2]
[364224391,1749045042577,-440.0,0.00016712,2]
[364224393,1749045042588,-430.0,0.00016712,2]
[364224395,1749045042598,-459.94098578,0.00016712,2]
[364224397,1749045042608,-397.39966698,0.00016712,2]
[364224399,1749045042617,-440.0,0.00016712,2]
[364224401,1749045042628,-440.0,0.00016712,2]
[364224403,1749045042638,-440.0,0.00016712,2]
[364224405,1749045042648,-410.0,0.00016712,2]
[364224407,1749045042657,-521.43,0.00016712,2]
[364224409,1749045042668,-410.0,0.00016712,2]
[364224411,1749045042679,-585.46,0.00016712,2]
[364224414,1749045042689,-440.0,0.00016712,2]
[364224417,1749045042698,-548.75053903,0.00016712,2]
[364224419,1749045042707,-440.0,0.00016712,2]
[364224421,1749045042716,-420.0,0.00016712,2]
[364224423,1749045042726,-430.0,0.00016712,2]
[364224425,1749045042735,-430.0,0.00016712,2]
[364224427,1749045042745,-440.0,0.00016712,2]
[364224430,1749045042756,-96.26977184,0.00016712,2]
[364224432,1749045042770,-333.73022816,0.00016712,2]
[364224435,1749045042779,-440.0,0.00016712,2]
[364224437,1749045042789,-588.0,0.00016712,2]
[364224439,1749045042800,-37.24521045,0.00016712,2]
[364224441,1749045042812,-402.75478955,0.00016712,2]
[364224444,1749045042824,-430.0,0.00016712,2]
[364224446,1749045042834,-440.0,0.00016712,2]
[364224448,1749045042843,-440.0,0.00016712,2]
[364224450,1749045042852,-430.0,0.00016712,2]
[364224452,1749045042863,-430.0,0.00016712,2]
[364224456,1749045042872,-436.4083983,0.00016712,2]
[364224459,1749045042882,-440.0,0.00016712,2]
[364224463,1749045042891,-430.0,0.00016712,2]
[364224468,1749045042900,-440.0,0.00016712,2]
[364224471,1749045042911,-280.15122475,0.00016712,2]
[364224475,1749045042921,-462.93925003,0.00016712,2]
[364224477,1749045042930,-194.03146566,0.00016712,2]
[364224480,1749045042939,-440.0,0.00016712,2]
[364224483,1749045042948,-440.0,0.00016712,2]
[364224487,1749045042958,-440.0,0.00016712,2]
[364224491,1749045042968,-440.0,0.00016712,2]
[364224495,1749045042978,-420.0,0.00016712,2]
[364224499,1749045042987,-430.0,0.00016712,2]
[364224503,1749045042998,-440.0,0.00016712,2]
[364224507,1749045043008,-390.0,0.00016712,2]
[364224512,1749045043018,-370.0,0.00016712,2]
[364224517,1749045043029,-370.0,0.00016712,2]
[364224521,1749045043039,-386.11617264,0.00016712,2]
[364224525,1749045043049,-450.0,0.00016712,2]
[364224528,1749045043059,-440.0,0.00016712,2]
[364224531,1749045043069,-155.58210707,0.00016712,2]
[364224533,1749045043079,-373.57976161,0.00016712,2]
[364224536,1749045043089,-425.79527849,0.00016712,2]
[364224539,1749045043099,-428.70625043,0.00016712,2]
[364224542,1749045043108,-340.0,0.00016712,2]
[364224545,1749045043118,-370.0,0.00016712,2]
[364224548,1749045043128,-440.0,0.00016712,2]
[364224551,1749045043138,-420.0,0.00016712,2]
[364224554,1749045043149,-430.0,0.00016712,2]
[364224557,1749045043158,-433.11436093,0.00016712,2]
[364224559,1749045043168,-440.0,0.00016712,2]
[364224562,1749045043177,-440.0,0.00016712,2]
[364224564,1749045043187,-361.29817458,0.00016712,2]
[364224566,1749045043196,-440.0,0.00016712,2]
[364224568,1749045043206,-440.0,0.00016712,2]
[364224570,1749045043216,-317.69396241,0.00016712,2]
[364224572,1749045043226,-380.0,0.00016712,2]
[364224574,1749045043236,-577.83763468,0.00016712,2]
[364224575,1749045043245,-452.15157776,0.00016712,2]
[364224577,1749045043255,-350.0,0.00016712,2]
[364224579,1749045043265,-488.42862704,0.00016712,2]
[364224581,1749045043274,-854.47,0.00016712,2]
[364224583,1749045043284,-506.52,0.00016712,2]
[364224585,1749045043294,-440.0,0.00016712,2]
[364224587,1749045043304,-454.44,0.00016712,2]
[364224589,1749045043314,-400.0,0.00016712,2]
[364224591,1749045043323,-440.0,0.00016712,2]
[364224593,1749045043332,-7690.29,0.00016712,2]
[364224595,1749045043341,-1091.39,0.00016712,2]
[364224596,1749045043351,-440.0,0.00016712,2]
[364224598,1749045043360,-420.0,0.00016712,2]
[364224600,1749045043370,-169.82190739,0.00016712,2]
[364224602,1749045043379,-440.0,0.00016712,2]
[364224604,1749045043388,-440.0,0.00016712,2]
[364224606,1749045043398,-490.0,0.00016712,2]
[364224608,1749045043409,-420.87968809,0.00016712,2]
[364224610,1749045043419,-440.0,0.00016712,2]
[364224612,1749045043428,-430.0,0.00016712,2]
[364224614,1749045043438,-251.70902113,0.00016712,2]
[364224617,1749045043447,-400.0,0.00016712,2]
[364224620,1749045043457,-440.0,0.00016712,2]
[364224623,1749045043467,-420.0,0.00016712,2]
[364224625,1749045043477,-400.0,0.00016712,2]
[364224627,1749045043486,-440.0,0.00016712,2]
[364224629,1749045043496,-420.0,0.00016712,2]
[364224631,1749045043506,-160.03003315,0.00016712,2]
[364224633,1749045043516,-440.0,0.00016712,2]
[364224634,1749045043526,-420.37450979,0.00016712,2]
[364224636,1749045043535,-396.87933725,0.00016712,2]
[364224638,1749045043547,-427.23081561,0.00016712,2]
[364224639,1749045043557,-440.0,0.00016712,2]
[364224641,1749045043567,-1759.2,0.00016712,2]
[364224643,1749045043576,-2750.33,0.00016712,2]
[364224644,1749045043586,-587.28,0.00016712,2]
[364224646,1749045043597,-313.84184174,0.00016712,2]
[364224648,1749045043607,-2580.62,0.00016712,2]
[364224650,1749045043616,-420.0,0.00016712,2]
[364224652,1749045043625,-420.0,0.00016712,2]
[364224653,1749045043635,-440.0,0.00016712,2]
[364224655,1749045043645,-440.0,0.00016712,2]
[364224657,1749045043654,-440.0,0.00016712,2]
[364224659,1749045043664,-2145.54,0.00016712,2]
[364224660,1749045043674,-618.02,0.00016712,2]
[364224662,1749045043683,-440.0,0.00016712,2]
[364224664,1749045043693,-440.0,0.00016712,2]
[364224666,1749045043703,-751.98,0.00016712,2]
[364224668,1749045043713,-440.0,0.00016712,2]
[364224669,1749045043722,-400.0,0.00016712,2]
[364224671,1749045043732,-440.0,0.00016712,2]
[364224673,1749045043741,-440.0,0.00016712,2]
[364224675,1749045043752,-420.0,0.00016712,2]
[364224677,1749045043762,-440.0,0.00016712,2]
[364224678,1749045043772,-440.0,0.00016712,2]
[364224680,1749045043782,-440.0,0.00016712,2]
[364224682,1749045043792,-4086.22,0.00016712,2]
[364224684,1749045043802,-439.41697352,0.00016712,2]
[364224686,1749045043812,-440.0,0.00016712,2]
[364224687,1749045043822,-440.0,0.00016712,2]
[364224689,1749045043834,-420.0,0.00016712,2]
[364224691,1749045043843,-440.0,0.00016712,2]
[364224692,1749045043853,-440.0,0.00016712,2]
[364224694,1749045043863,-432.4930032,0.00016712,2]
[364224696,1749045043873,-440.0,0.00016712,2]
[364224698,1749045043881,-420.0,0.00016712,2]
[364224699,1749045043893,-685.89,0.00016712,2]
[364224701,1749045043903,-654.89,0.00016712,2]
[364224703,1749045043913,-440.0,0.00016712,2]
[364224705,1749045043923,-541.02,0.00016712,2]
[364224706,1749045043932,-313.73292868,0.00016712,2]
[364224708,1749045043942,-440.0,0.00016712,2]
[364224710,1749045043952,-420.0,0.00016712,2]
[364224712,1749045043962,-420.0,0.00016712,2]
[364224714,1749045043972,-440.0,0.00016712,2]
[364224716,1749045043981,-1063.64,0.00016712,2]
[364224717,1749045043991,-766.02,0.00016712,2]
[364224719,1749045044001,-440.0,0.00016712,2]
[364224721,1749045044012,-1318.18,0.00016712,2]
[364224723,1749045044021,-440.0,0.00016712,2]
[364224725,1749045044031,-400.0,0.00016712,2]
[364224726,1749045044040,-430.0,0.00016712,2]
[364224728,1749045044050,-440.0,0.00016712,2]
[364224730,1749045044060,-2193.29,0.00016712,2]
[364224732,1749045044070,-440.0,0.00016712,2]
[364224734,1749045044079,-440.0,0.00016712,2]
[364224736,1749045044089,-430.0,0.00016712,2]
[364224738,1749045044099,-440.0,0.00016712,2]
[364224739,1749045044108,-440.0,0.00016712,2]
[364224741,1749045044118,-430.52,0.00016712,2]
[364224743,1749045044127,-440.0,0.00016712,2]
[364224745,1749045044136,-1644.91,0.00016712,2]
[364224747,1749045044145,-440.0,0.00016712,2]
[364224749,1749045044155,-2519.12,0.00016712,2]
[364224750,1749045044165,-440.0,0.00016712,2]
[364224752,1749045044177,-430.0,0.00016712,2]
[364224754,1749045044186,-440.0,0.00016712,2]
[364224756,1749045044196,-440.0,0.00016712,2]
[364224758,1749045044205,-1292.61,0.00016712,2]
[364224759,1749045044215,-200.0,0.00016712,2]
[364224761,1749045044225,-500.72993794,0.00016962,2]
[364224763,1749045044234,-454.31762056,0.00016962,2]
[364224765,1749045044243,-500.0,0.00016985,2]
[364224767,1749045044253,-160.9360826,0.00016985,2]
[364224769,1749045044263,-258.11360058,0.00016985,2]
[364224771,1749045044272,-500.0,0.00016985,2]
[364224772,1749045044282,-500.0,0.00016985,2]
[364224774,1749045044291,-360.79214488,0.00016985,2]
[364224776,1749045044301,-500.0,0.00016985,2]
[364224778,1749045044310,-500.0,0.00016985,2]
[364224780,1749045044320,-500.0,0.00016985,2]
[364224782,1749045044330,-500.0,0.00016985,2]
[364224783,1749045044339,-500.0,0.00016985,2]
[364224785,1749045044348,-500.0,0.00016985,2]
[364224787,1749045044358,-500.0,0.00016985,2]
[364224789,1749045044368,-500.0,0.00016985,2]
[364224791,1749045044378,-500.0,0.00016985,2]
[364224793,1749045044387,-500.0,0.00016985,2]
[364224795,1749045044398,-500.0,0.00016985,2]
[364224796,1749045044408,-226.89967068,0.00016985,2]
[364224798,1749045044419,-500.0,0.00016985,2]
[364224800,1749045044428,-500.0,0.00016985,2]
[364224801,1749045044438,-500.0,0.00016985,2]
[364224803,1749045044448,-500.0,0.00016985,2]
[364224805,1749045044458,-500.0,0.00016985,2]
[364224807,1749045044467,-500.0,0.00016985,2]
[364224809,1749045044478,-500.0,0.00016985,2]
[364224811,1749045044487,-479.69564389,0.00016985,2]
[364224812,1749045044496,-500.0,0.00016985,2]
[364224814,1749045044506,-500.0,0.00016985,2]
[364224816,1749045044515,-260.26261824,0.00016985,2]
[364224818,1749045044525,-500.0,0.00016985,2]
[364224820,1749045044536,-500.0,0.00016985,2]
[364224821,1749045044546,-306.22984234,0.00016985,2]
[364224823,1749045044556,-500.0,0.00016985,2]
[364224825,1749045044566,-500.0,0.00016985,2]
[364224827,1749045044575,-500.0,0.00016985,2]
[364224829,1749045044585,-500.0,0.00016985,2]
[364224830,1749045044594,-500.0,0.00016985,2]
[364224832,1749045044604,-500.0,0.00016985,2]
[364224834,1749045044614,-500.0,0.00016985,2]
[364224836,1749045044623,-257.49724865,0.00016985,2]
[364224838,1749045044633,-500.0,0.00016985,2]
[364224839,1749045044642,-445.1226041,0.00016985,2]
[364224841,1749045044652,-500.0,0.00016985,2]
[364224843,1749045044662,-500.0,0.00016985,2]
[364224845,1749045044672,-500.0,0.00016985,2]
[364224847,1749045044682,-500.0,0.00016985,2]
[364224849,1749045044692,-500.0,0.00016985,2]
[364224851,1749045044701,-500.0,0.00016985,2]
[364224852,1749045044711,-500.0,0.00016985,2]
[364224854,1749045044720,-500.0,0.00016985,2]
[364224856,1749045044730,-500.0,0.00016985,2]
[364224867,1749045044833,-500.0,0.00016985,2]
[364224868,1749045044843,-500.0,0.00016985,2]
[364224870,1749045044852,-500.0,0.00016985,2]
[364224872,1749045044863,-500.0,0.00016985,2]
[364224874,1749045044872,-500.0,0.00016985,2]
[364224876,1749045044882,-500.0,0.00016985,2]
[364224878,1749045044891,-500.0,0.00016985,2]
[364224879,1749045044901,-500.0,0.00016985,2]
[364224881,1749045044912,-500.0,0.00016985,2]
[364224883,1749045044922,-500.0,0.00016985,2]
[364224885,1749045044931,-500.0,0.00016985,2]
[364224887,1749045044941,-500.0,0.00016985,2]
[364224889,1749045044951,-500.0,0.00016985,2]
[364224891,1749045044960,-500.0,0.00016985,2]
[364224892,1749045044969,-500.0,0.00016985,2]
[364224894,1749045044979,-500.0,0.00016985,2]
[364224896,1749045044988,-500.0,0.00016985,2]
[364224898,1749045044997,-500.0,0.00016985,2]
[364224900,1749045045006,-500.0,0.00016985,2]
[364224902,1749045045015,-500.0,0.00016985,2]
[364224904,1749045045025,-500.0,0.00016985,2]
[364224905,1749045045035,-500.0,0.00016985,2]
[364224907,1749045045044,-500.0,0.00016985,2]
[364224909,1749045045054,-500.0,0.00016985,2]
[364224911,1749045045063,-500.0,0.00016985,2]
[364224913,1749045045072,-500.0,0.00016985,2]
[364224915,1749045045082,-500.0,0.00016985,2]
[364224916,1749045045091,-500.0,0.00016985,2]
[364224918,1749045045101,-500.0,0.00016985,2]
[364224920,1749045045110,-500.0,0.00016985,2]
[364224922,1749045045120,-500.0,0.00016985,2]
[364224924,1749045045129,-500.0,0.00016985,2]
[364224926,1749045045138,-500.0,0.00016985,2]
[364224928,1749045045148,-500.0,0.00016985,2]
[364224929,1749045045157,-500.0,0.00016985,2]
[364224931,1749045045166,-500.0,0.00016985,2]
[364224933,1749045045175,-500.0,0.00016985,2]
[364224935,1749045045185,-500.0,0.00016985,2]
[364224937,1749045045194,-500.0,0.00016985,2]
[364224939,1749045045205,-500.0,0.00016985,2]
[364224941,1749045045214,-500.0,0.00016985,2]
[364224942,1749045045223,-215.91382605,0.00016985,2]
[364224944,1749045045232,-500.0,0.00016985,2]
[364224946,1749045045242,-500.0,0.00016985,2]
[364224948,1749045045251,-500.0,0.00016985,2]
[364224950,1749045045260,-500.0,0.00016985,2]
[364224952,1749045045269,-500.0,0.00016985,2]
[364224954,1749045045279,-500.0,0.00016985,2]
[364224955,1749045045288,-500.0,0.00016985,2]
[364224957,1749045045297,-500.0,0.00016985,2]
[364224959,1749045045306,-500.0,0.00016985,2]
[364224961,1749045045316,-500.0,0.00016985,2]
[364224963,1749045045325,-500.0,0.00016985,2]
[364224965,1749045045334,-500.0,0.00016985,2]
[364224966,1749045045343,-500.0,0.00016985,2]
[364224968,1749045045353,-500.0,0.00016985,2]
[364224970,1749045045362,-500.0,0.00016985,2]
[364224972,1749045045372,-500.0,0.00016985,2]
[364224974,1749045045381,-500.0,0.00016985,2]
[364224976,1749045045390,-500.0,0.00016985,2]
[364224978,1749045045399,-500.0,0.00016985,2]
[364224979,1749045045408,-500.0,0.00016985,2]
[364224981,1749045045418,-500.0,0.00016985,2]
[364224983,1749045045428,-500.0,0.00016985,2]
[364224985,1749045045438,-252.95482955,0.00016985,2]
[364224987,1749045045448,-500.0,0.00016985,2]
[364224989,1749045045458,-500.0,0.00016985,2]
[364224991,1749045045467,-500.0,0.00016985,2]
[364224993,1749045045476,-500.0,0.00016985,2]
[364224995,1749045045486,-500.0,0.00016985,2]
[364224997,1749045045496,-500.0,0.00016985,2]
[364224998,1749045045505,-500.0,0.00016986,2]
[364225000,1749045045515,-500.0,0.00016986,2]